Cogmind - Beta 16 @@@ ROGUE MODE // 2025.11.09 @ 18:16:34 Player: Palikka Result: Destroyed by PV-IJY(R) with Subdweller Laser Performance ------------- Evolutions (0) 0 Regions Visited (2) 400 Robots Destroyed (19) 95 Value Destroyed (348) 348 Prototype IDs (6) 120 Alien Tech Used (0) 0 Bonus (0) 0 TOTAL SCORE: 963 Bonus ------- None Cogmind --------- Core Integrity 0/250 Matter 193/300 Energy 44/100 System Corruption 5% Temperature Cool (6) Movement Treading (160) Location -10/Subcaves Parts ------- > --- POWER (1) -------- (None) > --- PROPULSION (2) --- Light Treads Light Treads > --- UTILITY (2) ------ Large Storage Unit > --- WEAPON (2) ------- Medium Laser Assault Rifle > --- INVENTORY (15) --- Light Nuclear Core Light Treads Compact Wheel Compact Wheel Heat Sink Huge Storage Unit Large Matter Pod (150) Structural Scanner Signal Interpreter Hammer Mining Claw Peak State ------------ > --- POWER ------------ Light Ion Engine > --- PROPULSION ------- Light Treads Light Treads > --- UTILITY ---------- Large Storage Unit Seismic Detector > --- WEAPON ----------- Assault Rifle Makeshift Shrapnel Gun > --- INVENTORY -------- Light Nuclear Core Light Treads Light Treads Compact Wheel Compact Wheel Heat Sink Huge Storage Unit Large Matter Pod Structural Scanner Signal Interpreter Medium Laser Assault Rifle Assault Rifle Hammer Mining Claw [Rating: 11] Favorites ----------- Power Ion Engine Engine Ion Engine Propulsion Light Treads Treads Light Treads Utility Seismic Detector Device Seismic Detector Storage Large Storage Unit Weapon Assault Rifle Energy Gun Medium Laser Ballistic Gun Assault Rifle Build | -11 -10 -10 ------- Run | Yrd Mat Sub Slots Evolved . | . . . Power . | . . . Propulsion . | . . . Utility . | . . . Weapon . | . . . Parts Attached 16 | 7 5 4 Power 2 | 1 1 . Engine 2 | 1 1 . Core . | . . . Reactor . | . . . Propulsion 4 | 2 2 . Treads 4 | 2 2 . Leg . | . . . Wheel . | . . . Hover . | . . . Flight . | . . . Utility 3 | 2 1 . Device 1 | 1 . . Storage 2 | 1 1 . Processor . | . . . Hackware . | . . . Protection . | . . . Artifact . | . . . Weapon 7 | 2 1 4 Energy Gun 1 | . . 1 Energy Cannon . | . . . Ballistic Gun 6 | 2 1 3 Ballistic Cannon . | . . . Launcher . | . . . Special Weapon . | . . . Impact Weapon . | . . . Slashing Weapon . | . . . Piercing Weapon . | . . . Special Melee Weapon . | . . . Unidentified Prototypes . | . . . Parts Lost 6 | . . 6 Power 1 | . . 1 Propulsion 1 | . . 1 Utility 1 | . . 1 Weapon 3 | . . 3 Highest Loss Streak 6 | . . 6 To Critical Strikes . | . . . Average Backups 10 | 2 11 14 Power 1 | . 1 1 Propulsion 2 | 1 2 3 Utility 3 | . 4 5 Weapon 2 | . 2 4 Tool/Special . | . . . Unused Backups 14 | . 4 10 Power 3 | . 2 1 Propulsion 2 | . . 2 Utility 6 | . 1 5 Weapon 3 | . 1 2 Tool/Special . | . . . Average Slot Usage (%) 98 | . 99 91 Engine 13 | . 14 11 Treads 27 | . 27 26 Device 13 | . 14 11 Storage 14 | . 14 14 Ballistic Gun 27 | . 28 25 Peak Build Rating 11 | 7 8 11 Average Rating 7 | 5 7 8 On Entrance 5 | . 7 8 Avg Prop Armor Cover (%) . | . . . Naked Turns . | . . . Heaviest Build 30 | 15 30 28 Greatest Support 40 | 40 40 40 Greatest Overweight (x) . | . . . Average Overweight (x) . | . . . Largest Inventory Capacity 15 | 8 15 15 Average Capacity 12 | 7 13 15 Most Carried 15 | 5 15 15 Average Carried 10 | 2 11 14 Final Capacity 15 | 8 15 15 Final Carried 15 | 4 15 11 Class Distribution -------------------- 94% | Mutant 5% | Scavenger-Mutant Dominant Class ---------------- Mutant | -10/Materials Mutant | -10/Subcaves Resources | -11 -10 -10 ----------- Run | Yrd Mat Sub Matter Collected 857 | 297 559 1 Remotely . | . . . Salvage Created 564 | 81 443 40 Parts 35 | 3 31 1 Haulers Intercepted 2 | . 2 . Recyclers Shooed . | . . . Parts Field Recycled . | . . . Retrieved Matter . | . . . Parts Self-Destructed 2 | . . 2 Prevented . | . . . Parts Restored . | . . . Kills | -11 -10 -10 ------- Run | Yrd Mat Sub Combat Hostiles Destroyed 12 | . 11 1 Guns 12 | . 11 1 Classes Destroyed 7 | 2 4 1 Tunneler 1 | 1 . . Hauler 2 | . 2 . Recycler 1 | 1 . . Watcher 3 | . 3 . Swarmer 6 | . 6 . Grunt 5 | . 5 . Subdweller 1 | . . 1 Best Kill Streak 4 | 1 4 1 Combat Bots Only 3 | . 3 1 Max Kills in Single Turn 1 | 1 1 1 Gunslinging . | . . . Exploded . | . . . Melee . | . . . Uniques/NPCs Destroyed . | . . . Combat | -11 -10 -10 -------- Run | Yrd Mat Sub Hostile Shots Fired 114 | . 63 51 Missed 32 | . 19 13 Hits 82 | . 44 38 Projectile 82 | . 44 38 Critical Strikes 2 | . 1 1 Damage Taken 1262 | . 449 813 Core 269 | . 65 204 Absorbed by Shields . | . . . Regen/Repaired (Parts) 227 | . 227 . Core Remaining (%) 100 | 100 . . Volleys Fired 60 | 5 46 9 Largest 2 | 2 2 2 Hottest 70 | 40 40 70 Shots Fired 121 | 9 94 18 Gun 121 | 9 94 18 Cannon . | . . . Launcher . | . . . Special . | . . . Kinetic 120 | 9 94 17 Thermal 1 | . . 1 Explosive . | . . . Electromagnetic . | . . . Robot Hit Streak 11 | 3 11 5 Robot Miss Streak 5 | 2 5 4 Penetration Max . | . . . Secondary Targets 3 | . 3 . Max Gunslinging Chain 1 | . 1 . Shots Hit Robots 73 | 6 53 14 Core Hits 34 | 3 24 7 Critical Kills . | . . . Critical Parts Destroyed . | . . . Critical Strikes . | . . . Melee Attacks . | . . . Impact . | . . . Slashing . | . . . Piercing . | . . . Sneak Attacks . | . . . Combat Hostiles . | . . . Follow-up Attacks . | . . . Damage Inflicted 1041 | 72 672 297 Guns 1041 | 72 672 297 Cannons . | . . . Explosions . | . . . Melee . | . . . Ramming . | . . . Kinetic 1029 | 72 672 285 Thermal 12 | . . 12 Explosive . | . . . Electromagnetic . | . . . Impact . | . . . Slashing . | . . . Piercing . | . . . Highest Corruption 5 | . 5 5 Average Corruption 4 | . 4 5 Corruption Purged . | . . . Corruption Blocked . | . . . Effects 26 | . 23 3 Message Errors 8 | . 7 1 Matter Fused 9 | . 7 2 Heat Flow Errors 2 | . 2 . Energy Discharges 2 | . 2 . Data Loss (minor) 3 | . 3 . Misfires 2 | . 2 . Overload Shots . | . . . Overflow Damage . | . . . Projectiles . | . . . Explosions . | . . . Melee . | . . . Knockbacks . | . . . Impact . | . . . Kinetic . | . . . Secondary . | . . . Self-Inflicted Damage . | . . . Shots . | . . . Rammed . | . . . Targets Rammed . | . . . Kicked . | . . . Crushed . | . . . Highest Temperature 257 | . 257 . Average Temperature 75 | . 75 . Received Heat Transfer 354 | . 174 180 Siege Activations . | . . . Martial Activations . | . . . Shielding Activations . | . . . Robots Disrupted . | . . . Combat Hostiles . | . . . Robots Corrupted . | . . . Combat Hostiles . | . . . Parts Fried . | . . . Impact Corruptions . | . . . Robots Melted . | . . . Combat Hostiles . | . . . Parts Melted 1 | . . 1 Heat Transferred 37 | . . 37 Parts Sabotaged . | . . . Parts Stolen . | . . . Parts Stripped . | . . . Power Chain Reactions . | . . . Alert | -11 -10 -10 ------- Run | Yrd Mat Sub Maximum Alert Level . | . . . Low Security (%) 100 | 100 100 . Level 1 . | . . . Level 2 . | . . . Level 3 . | . . . Level 4 . | . . . Level 5 . | . . . High Security . | . . . Max Security . | . . . Peak Influence 147 | 5 147 . Initial . | . . . Average 29 | . 31 . Influence Increases 374 | 10 364 . Destroy 0b10 Robot/C 220 | . 220 . Destroy 0b10 Robot/NC 35 | 10 25 . Destroy Leader 60 | . 60 . Successful Hack 29 | . 29 . Select Force Hacks 30 | . 30 . Influence Decreases 374 | 10 364 . Time Decay 374 | 10 364 . Squads Dispatched 2 | . 2 . Investigation 1 | . 1 . Extermination . | . . . Reinforcement 1 | . 1 . Assault . | . . . Garrison . | . . . Intercept . | . . . Searches Triggered . | . . . Construction Impeded . | . . . Haulers Reinforced . | . . . Active Scanning Responses . | . . . Cargo Convoy Interrupts . | . . . Stealth | -11 -10 -10 --------- Run | Yrd Mat Sub Distress Signals 1 | . 1 . Communications Jammed . | . . . Distress Signals . | . . . Times Spotted 21 | . 17 4 Peak Tracking Total 4 | . 4 4 Tactical Retreats . | . . . Traps | -11 -10 -10 ------- Run | Yrd Mat Sub Traps Triggered 3 | . 3 . Indirectly . | . . . Trap Hack Attempts . | . . . Triggered . | . . . Disarmed . | . . . Reprogrammed . | . . . Reused . | . . . Traps Extracted . | . . . Installed . | . . . Triggered . | . . . Machines | -11 -10 -10 ---------- Run | Yrd Mat Sub Machines Disabled . | . . . Max in Single Turn . | . . . Machines Repaired . | . . . Machines Dismantled . | . . . Machines Sabotaged . | . . . Overloaded Fab Kills . | . . . Hacking | -11 -10 -10 --------- Run | Yrd Mat Sub Machines Accessed 8 | . 8 . Terminals 6 | . 6 . Fabricators . | . . . Repair Stations 1 | . 1 . Recycling Units 1 | . 1 . Scanalyzers . | . . . Garrison Access . | . . . Total Hacks 32 | . 32 . Successful 22 | . 22 . Failed 10 | . 10 . Catastrophic . | . . . Database Lockouts . | . . . Manual 12 | . 12 . Terminals 23 | . 23 . Fabricators . | . . . Repair Stations 8 | . 8 . Recycling Units 1 | . 1 . Scanalyzers . | . . . Garrison Access . | . . . Terminal Hacks 10 | . 10 . Part Schematic 1 | . 1 . Prototype ID Bank 3 | . 3 . Alert Level 1 | . 1 . Locate Traps 3 | . 3 . Zone Layout 2 | . 2 . Fabricator Hacks . | . . . Repair Station Hacks 6 | . 6 . Scan Component 3 | . 3 . Repair 3 | . 3 . Recycling Unit Hacks . | . . . Scanalyzer . | . . . Garrison Access Hacks . | . . . Unauthorized Hacks 6 | . 6 . Terminals 5 | . 5 . Track 1 | . 1 . Botnet 4 | . 4 . Fabricators . | . . . Repair Stations . | . . . Recycling Units 1 | . 1 . Tunnel 1 | . 1 . Scanalyzers . | . . . Garrison Access . | . . . Data Cores Recovered . | . . . Used . | . . . Hacking Detections 6 | . 6 . Full Trace Events . | . . . Feedback Events . | . . . Feedback Blocked . | . . . Robot Schematics Acquired . | . . . Robots Built . | . . . Authchips . | . . . Time . | . . . Total Robot Build Rating . | . . . Part Schematics Acquired 1 | . 1 . Parts Built . | . . . Authchips . | . . . Time . | . . . Total Part Build Rating . | . . . Part Studies Acquired . | . . . Parts Repaired 3 | . 3 . Time 78 | . 78 . Parts Recycled . | . . . Recycled Matter . | . . . Retrieved Matter . | . . . Retrieved Components . | . . . Parts Scanalyzed . | . . . Part Schematics Acquired . | . . . Parts Damaged . | . . . Bothacking | -11 -10 -10 ------------ Run | Yrd Mat Sub Used RIF Installer . | . . . Robots Hacked . | . . . Non-combat . | . . . Combat . | . . . Robot Hacks Applied . | . . . Relay Couplers Released . | . . . Fabnet Peak Effective % . | . . . Robots Rewired . | . . . Allies Hacked . | . . . Hacks Repelled . | . . . Allies | -11 -10 -10 -------- Run | Yrd Mat Sub Total Allies . | . . . Largest Group . | . . . Highest-Rated Group . | . . . Highest-Rated Ally . | . . . Total Orders . | . . . Ally Attacks . | . . . Total Damage . | . . . Kills . | . . . Allies Corrupted . | . . . Allies Melted . | . . . Intel | -11 -10 -10 ------- Run | Yrd Mat Sub Active Infowar (turns) 1553 | 13 1450 90 Seismic 1553 | 13 1450 90 Robot Analysis Total . | . . . Derelict Logs Recovered . | . . . Drone Launches . | . . . Drone Recoveries . | . . . Exploration | -11 -10 -10 ------------- Run | Yrd Mat Sub Turns Passed 1662 | 106 1450 106 Spaces Moved 841 | 52 743 46 Core 6 | 6 . . Treads 835 | 46 743 46 Legs . | . . . Wheels . | . . . Hover . | . . . Flight . | . . . Fastest Speed 50 | 50 160 160 Average Speed 159 | 147 160 160 Slowest Speed 160 | 160 160 160 Overloaded Moves . | . . . Propulsion Burnouts . | . . . Robots Hopped . | . . . Potential Cave-ins . | . . . Cave-ins Triggered . | . . . Exploration Rate (%) 35 | 5 96 6 Regions Visited 2 Branch Regions 1 Pre-discovered Areas 1 | . 1 . Known Exits Taken . | . . . Unknown Exits Taken 2 | 1 1 . Scrap Searched . | . . . Spaces Dug . | . . . Terrain Destroyed . | . . . Melee . | . . . Projectile . | . . . AOE . | . . . Terrain Rammed . | . . . Walls Destroyed . | . . . Machines Disabled . | . . . Actions | -11 -10 -10 --------- Run | Yrd Mat Sub Total 1049 | 70 916 63 Wait 99 | 1 96 2 Move 839 | 51 742 46 Hop . | . . . Pick Up 22 | 6 16 . Fast Attach 9 | 5 3 1 Attach 6 | 2 . 4 Detach . | . . . Swap 5 | . 5 . Drop 9 | . 8 1 Fire 60 | 5 46 9 Melee . | . . . Ram . | . . . Kick . | . . . Crush . | . . . Escape Stasis . | . . . Rewire . | . . . Trap . | . . . Miscellaneous . | . . . Route ------- -11/Scrapyard -10/Materials (discovered 6 exits: [*Mat x3] / [*Min x2] / [*Sub]) -10/Subcaves History --------- Turn | Location | Event 14 | -11/Scrapyard | Discovered new exit (range 16) 107 | -11/Scrapyard | Entered Materials 258 | -10/Materials | Discovered new exit (range 6) 305 | -10/Materials | Build established: Mutant 428 | -10/Materials | Discovered new exit (range 14) 490 | -10/Materials | Repaired Lgt. Treads 621 | -10/Materials | Discovered new exit (range 14) 1092 | -10/Materials | Discovered new exit (range 10) 1235 | -10/Materials | Discovered new exit (range 6) 1241 | -10/Materials | Discovered new exit (range 6) 1422 | -10/Materials | Repaired Lgt. Treads 1450 | -10/Materials | Repaired Lgt. Treads 1557 | -10/Materials | Entered Subcaves 1558 | -10/Subcaves | Approached by a straggling Scientist 1569 | -10/Subcaves | Shifting Twisted Machinery released Mak. Light Armor Plating 1592 | -10/Subcaves | Shifting Twisted Machinery released Mak. Shrapnel Gun 1602 | -10/Subcaves | Shifting Twisted Machinery released Mak. Axe 1641 | -10/Subcaves | Core integrity fell below 50% 1656 | -10/Subcaves | Core integrity fell below 20% 1663 | -10/Subcaves | Destroyed by PV-IJY(R) with Subdweller Laser Last Messages --------------- 01576_ System corrupted: Matter fused (-10). Mak. Shrapnel Gun falls loose from the Twisted Machinery. Mak. Axe falls loose from the Twisted Machinery. 01605_ Dropped Lgt. Assault Rifle. 01606_ Acquired Mak. Shrapnel Gun. D4-9AC(c): "I think it's somewhere north of here" 01620_ Subatomizers dissect the Lgt. Assault Rifle. 01637_ Assault Rifle destroyed. 01643_ Lgt. Ion Engine destroyed. 01645_ DTO=ZO4GJH JXQ6VCJE8Z3S8O EVE79 01647_ Subatomizers dissect the Lgt. Assault Rifle. 01647_ Seismic Detector destroyed. 01648_ Disposable Heat Sink melted. 01648_ 74-SSN(R) destroyed. 01651_ Lgt. Treads destroyed. 01657_ Assault Rifle destroyed. 01658_ Mak. Shrapnel Gun destroyed. D4-9AC(c): "I think it's somewhere north of here" 01661_ Subatomizers dissect the Lgt. Assault Rifle. 01663_ System corrupted: Matter fused (-10). Map ----- +----------------------------------------------------+ | ?????????????????????????????????????????????????? | | ?????????????????????????????????????????????????? | | ?????????????????????????????????????????????????? | | ?????????????????????????????????????????????????? | | ?????????????????????????????????????????????????? | | ?????????????????????????????????????????????????? | | ?????????????????????????????????????????????????? | | ??????????????????????#??????????????????????????? | | ?????????????????????? ?????????????????????????? | | ?????????????????????? ????????????#????????????? | | ??????????????????????# ?????????? ?????????????? | | ??????????????????????# ?????##? #?????????????? | | ??????????????????????# ????? ##" #?????????????? | | ?????????????????????## ???? ??????????????? | | ????????????????????## ???? "??????????????? | | ????????????????????# ##?# "???????????????? | | ?????????????????####" ## "???????????????? | | ????????????## #""# "" ????????????????? | | ????????????# " ""??????????????????? | | ????????????? ????????????????????? | | ???????????????????# " #?????????????????????? | | ???????????????????##"""" R#?????????????????????? | | ??????????????????#?# """R ##????????????????????? | | ?????????????????"""# &%R #????????????????????? | | ?????????????????"""" =/ "#????????????????????? | | ????????????????"" """" @ "##"#?????????????????? | | ?????????????????"""#"" """ #?????????????????? | | ????????????????""??#"" # "" #?????????????????? | | ????????????????#""##" ## """ #?????????????????? | | ????????????????#"" ""[ ##### #?????????????????? | | ????????????????# """ ##??# #?????????????????? | | ????????????????# """"" ##??##?????????????????? | | ????????????????##"" "" #?????????????????????? | | ?????????????????##" "" "#?????????????????????? | | ??????????????????## "##?????????????????????? | | ???????????????????# ###??????????????????????? | | ??????????????????## #????????????????????????? | | ??????????????????# ##????????????????????????? | | ??????????????????# ##?????????????????????????? | | ???????????????##### ######?????????????????????? | | ????????????#### #### ## #?????????????????????? | | ???????????## ### #??????????????????????? | | ???????????# #??????????????????????? | | ???????????# % # #??????????????????????? | | ????????#### ### #??????????????????????? | | ???????# %### #??????????????????????? | | ??# ###?# #?????????????????????? | | ?# ##???## %##?????????????????????? | | ?## ## # % #?????# #?????????????????????? | | ?? ???## ### ##?????# #?????????????????????? | +----------------------------------------------------+ Best States ------------- Heat Dissipation 25 Energy Generation 10 Energy Capacity 250 Matter Stores 300 Matter Capacity 300 Sight Range 16 Terrain Scan Density 10 Evasion (%) 40 Recoil Reduction 2 Item Schematics ----------------- Hcp. Storage Unit | -10/Materials | Hacked Robot Schematics ------------------ None Fabricated ------------ Nothing Repaired ---------- Lgt. Treads | 35% | -10/Materials Lgt. Treads | 30% | -10/Materials Lgt. Treads | 72% | -10/Materials Studied --------- None Alien Tech Used ----------------- None Achievements -------------- None Challenges ------------ None Game ------ Seed PlexusRefinerySystem Manual? 0 Play Time 00:13:33 Cumulative 419.1 hours Start 2025.11.09 @ 18:04:40 End 2025.11.09 @ 18:16:34 Sessions 1 Manual Loads 0 Difficulty Rogue Special Mode None Game No. 466 Rogue 466 Adventurer 0 Explorer 0 Win Type - Total 38 Types 28/0/7/3/0/0/0/0/0/0 Lore% 80 Gallery% 71 Achievement% 39 Wizard Run 0 Options --------- Layout 0 ASCII 0 Keyboard 1 Movement Numpad Keybinds 0 Fullscreen 1 Font 24/Smallcaps Map View 76x50 Zoom Use 0% Tactical HUD 1 Map Filters NONE Filters NONE Steam 1 RUN: 1cdc5de8-3b47-4ebb-b585-eb41f6cf2ed6